[Event "*** Qualifier 3: Titled Tuesday 3|2 Blitz"]
[Site "Chess.com"]
[Date "2017.04.18"]
[Round "2"]
[White "abubakrtagelsir"]
[Black "peteseeger"]
[Result "0-1"]
[WhiteElo "2139"]
[BlackElo "2111"]
[TimeControl "180+2"]
[EndTime "13:28:14 PDT"]
[Termination "peteseeger won by resignation"]

1. e4 {[%clk 0:02:57.5]} 1... g6 {[%clk 0:02:59.2]} 2. d4 {[%clk 0:02:58]} 2...
Bg7 {[%clk 0:02:59.9]} 3. Nc3 {[%clk 0:02:58.2]} 3... c6 {[%clk 0:03:00.4]} 4.
Nf3 {[%clk 0:02:56.6]} 4... d6 {[%clk 0:03:00.5]} 5. h3 {[%clk 0:02:56]} 5...
Nf6 {[%clk 0:02:55.7]} 6. Be3 {[%clk 0:02:56.2]} 6... Qb6 {[%clk 0:02:55.8]} 7.
Rb1 {[%clk 0:02:52.8]} 7... Nbd7 {[%clk 0:02:50.5]} 8. Bd3 {[%clk 0:02:50.8]}
8... O-O {[%clk 0:02:49.9]} 9. O-O {[%clk 0:02:51.1]} 9... Qc7 {[%clk
0:02:50.6]} 10. Ne2 {[%clk 0:02:49.1]} 10... e5 {[%clk 0:02:50]} 11. c3 {[%clk
0:02:49.6]} 11... Re8 {[%clk 0:02:47.4]} 12. Ng3 {[%clk 0:02:50.1]} 12... b6
{[%clk 0:02:45.1]} 13. Re1 {[%clk 0:02:45.6]} 13... Bb7 {[%clk 0:02:45.2]} 14.
Qd2 {[%clk 0:02:45.8]} 14... Rad8 {[%clk 0:02:39.2]} 15. Rbc1 {[%clk 0:02:37.8]}
15... d5 {[%clk 0:02:24]} 16. dxe5 {[%clk 0:02:26.6]} 16... Nxe4 {[%clk
0:02:22.8]} 17. Nxe4 {[%clk 0:02:13.8]} 17... dxe4 {[%clk 0:02:22.5]} 18. Bxe4
{[%clk 0:02:14.1]} 18... Nxe5 {[%clk 0:02:19.7]} 19. Qc2 {[%clk 0:02:14.4]}
19... Nxf3+ {[%clk 0:02:11.1]} 20. Bxf3 {[%clk 0:02:14.6]} 20... c5 {[%clk
0:02:11.6]} 21. Bg5 {[%clk 0:02:09]} 21... f6 {[%clk 0:01:33.1]} 22. Rxe8+
{[%clk 0:02:01.8]} 22... Rxe8 {[%clk 0:01:32.6]} 23. Qa4 {[%clk 0:02:00]} 23...
Re7 {[%clk 0:01:19.2]} 24. Bf4 {[%clk 0:01:55.2]} 24... Qc8 {[%clk 0:01:03.2]}
25. Bxb7 {[%clk 0:01:40.6]} 25... Qxb7 {[%clk 0:01:03.2]} 26. Rd1 {[%clk
0:01:35.1]} 26... h5 {[%clk 0:01:00.3]} 27. Qc4+ {[%clk 0:01:24]} 27... Kh7
{[%clk 0:01:00.5]} 28. Rd8 {[%clk 0:01:23.3]} 28... g5 {[%clk 0:00:56]} 29. Be3
{[%clk 0:00:58.3]} 29... Rd7 {[%clk 0:00:41.7]} 30. Qg8+ {[%clk 0:00:56.4]}
30... Kh6 {[%clk 0:00:41.9]} 31. h4 {[%clk 0:00:53.8]} 31... Rxd8 {[%clk
0:00:27.7]} 32. Qxd8 {[%clk 0:00:50.8]} 32... Qe4 {[%clk 0:00:20.5]} 33. hxg5+
{[%clk 0:00:50.1]} 33... Kg6 {[%clk 0:00:18.6]} 34. gxf6 {[%clk 0:00:20.4]}
34... Bxf6 {[%clk 0:00:19.4]} 35. Qd1 {[%clk 0:00:20.6]} 35... h4 {[%clk
0:00:16.2]} 36. a3 {[%clk 0:00:19.4]} 36... a5 {[%clk 0:00:15.9]} 37. Qe2 {[%clk
0:00:17.3]} 37... Qb1+ {[%clk 0:00:15.6]} 38. Kh2 {[%clk 0:00:18.1]} 38... Be5+
{[%clk 0:00:16.1]} 39. f4 {[%clk 0:00:19.2]} 39... Bf6 {[%clk 0:00:16.8]} 40.
Qg4+ {[%clk 0:00:19.3]} 40... Kf7 {[%clk 0:00:16.4]} 41. f5 {[%clk 0:00:20.4]}
41... Qe1 {[%clk 0:00:15.4]} 42. Bf4 {[%clk 0:00:21.1]} 42... Qe4 {[%clk
0:00:14]} 43. Qg6+ {[%clk 0:00:21.2]} 43... Ke7 {[%clk 0:00:14.6]} 44. Bd6+
{[%clk 0:00:22.1]} 44... Kxd6 {[%clk 0:00:14.9]} 45. Qxf6+ {[%clk 0:00:23.2]}
45... Kc7 {[%clk 0:00:15.8]} 46. Qe6 {[%clk 0:00:23.2]} 46... Qf4+ {[%clk
0:00:15.3]} 47. Kg1 {[%clk 0:00:23.1]} 47... Qc1+ {[%clk 0:00:15.5]} 48. Kf2
{[%clk 0:00:23.5]} 48... Qxb2+ {[%clk 0:00:15.6]} 49. Qe2 {[%clk 0:00:22.9]}
49... Qxc3 {[%clk 0:00:13.9]} 50. Qe7+ {[%clk 0:00:23.1]} 50... Kc6 {[%clk
0:00:13.9]} 51. f6 {[%clk 0:00:24.2]} 51... Qg3+ {[%clk 0:00:14]} 52. Kf1 {[%clk
0:00:24.8]} 52... Qf4+ {[%clk 0:00:14.6]} 53. Ke2 {[%clk 0:00:25.9]} 53... Qg4+
{[%clk 0:00:13.6]} 54. Kd3 {[%clk 0:00:24.9]} 54... Qg3+ {[%clk 0:00:12.8]} 55.
Ke4 {[%clk 0:00:18.6]} 55... Qxg2+ {[%clk 0:00:13.2]} 56. Ke5 {[%clk 0:00:18.4]}
56... Qe2+ {[%clk 0:00:12.6]} 57. Kf5 {[%clk 0:00:19.4]} 57... Qf3+ {[%clk
0:00:13.6]} 58. Kg6 {[%clk 0:00:19.8]} 58... Qg4+ {[%clk 0:00:13.4]} 59. Kf7
{[%clk 0:00:19.7]} 59... h3 {[%clk 0:00:14.1]} 60. Qe5 {[%clk 0:00:09]} 60...
Qg2 {[%clk 0:00:09.9]} 61. Ke7 {[%clk 0:00:06.3]} 61... h2 {[%clk 0:00:09.5]}
62. f7 {[%clk 0:00:07]} 62... h1=Q {[%clk 0:00:09.9]} 63. f8=Q {[%clk
0:00:07.4]} 63... Qh4+ {[%clk 0:00:09.4]} 64. Qff6+ {[%clk 0:00:07.8]} 64...
Qxf6+ {[%clk 0:00:08.7]} 65. Qxf6+ {[%clk 0:00:08.4]} 65... Kb5 {[%clk
0:00:10.1]} 66. a4+ {[%clk 0:00:08.6]} 66... Kxa4 {[%clk 0:00:10.3]} 67. Qxb6
{[%clk 0:00:09.3]} 67... Qe4+ {[%clk 0:00:09.6]} 68. Kd7 {[%clk 0:00:09.2]}
68... c4 {[%clk 0:00:10.7]} 69. Qc5 {[%clk 0:00:07.7]} 69... Qd3+ {[%clk
0:00:10.8]} 70. Kc6 {[%clk 0:00:07.8]} 70... c3 {[%clk 0:00:11.6]} 71. Kb6
{[%clk 0:00:06.9]} 71... c2 {[%clk 0:00:08.8]} 72. Qxa5+ {[%clk 0:00:06.6]}
72... Kb3 {[%clk 0:00:09.8]} 73. Qa1 {[%clk 0:00:07.3]} 73... Qc3 {[%clk
0:00:07.9]} 74. Qc1 {[%clk 0:00:07.4]} 74... Qb2 {[%clk 0:00:08.1]} 75. Qe3+
{[%clk 0:00:07.9]} 75... Ka2+ {[%clk 0:00:08.9]} 76. Ka5 {[%clk 0:00:08.6]}
76... c1=Q {[%clk 0:00:10.3]} 77. Qe6+ {[%clk 0:00:09.6]} 77... Qb3 {[%clk
0:00:10.4]} 78. Qc6 {[%clk 0:00:09.3]} 78... Qca3+ {[%clk 0:00:10.5]} 0-1

[Event "*** Qualifier 3: Titled Tuesday 3|2 Blitz"]
[Site "Chess.com"]
[Date "2017.04.18"]
[Round "2"]
[White "Aygehovit1992"]
[Black "PelinGorki"]
[Result "1/2-1/2"]
[WhiteElo "2418"]
[BlackElo "2367"]
[TimeControl "180+2"]
[EndTime "13:29:04 PDT"]
[Termination "Game drawn - insufficient material"]

1. e4 {[%clk 0:03:02]} 1... d6 {[%clk 0:02:56.3]} 2. d4 {[%clk 0:03:01.2]} 2...
Nf6 {[%clk 0:02:56.9]} 3. Nc3 {[%clk 0:03:02.5]} 3... c6 {[%clk 0:02:57.6]} 4.
f4 {[%clk 0:03:02.9]} 4... Qa5 {[%clk 0:02:57.7]} 5. Nf3 {[%clk 0:03:03.9]} 5...
Nxe4 {[%clk 0:02:58.2]} 6. Bd2 {[%clk 0:03:01.4]} 6... Nxd2 {[%clk 0:02:58.9]}
7. Qxd2 {[%clk 0:03:02.6]} 7... Bg4 {[%clk 0:02:58.1]} 8. Be2 {[%clk 0:03:03.6]}
8... Nd7 {[%clk 0:02:57.7]} 9. O-O-O {[%clk 0:03:04.2]} 9... b5 {[%clk
0:02:52.4]} 10. Kb1 {[%clk 0:03:04]} 10... e6 {[%clk 0:02:48.8]} 11. h3 {[%clk
0:03:04.2]} 11... Bxf3 {[%clk 0:02:45.9]} 12. Bxf3 {[%clk 0:03:05.2]} 12... Rc8
{[%clk 0:02:46.6]} 13. f5 {[%clk 0:03:05.7]} 13... e5 {[%clk 0:02:43.9]} 14.
dxe5 {[%clk 0:03:01.3]} 14... Nxe5 {[%clk 0:02:44.8]} 15. Rhe1 {[%clk
0:02:58.4]} 15... Qc7 {[%clk 0:02:36.3]} 16. Ne4 {[%clk 0:02:49.8]} 16... d5
{[%clk 0:01:04.1]} 17. Nc3 {[%clk 0:02:26.8]} 17... Be7 {[%clk 0:01:03]} 18.
Bxd5 {[%clk 0:01:56.9]} 18... b4 {[%clk 0:00:59.5]} 19. Bb3 {[%clk 0:01:56.6]}
19... bxc3 {[%clk 0:00:57.7]} 20. Qxc3 {[%clk 0:01:55.6]} 20... f6 {[%clk
0:00:57.8]} 21. a3 {[%clk 0:01:51.1]} 21... g6 {[%clk 0:00:43.2]} 22. Be6 {[%clk
0:01:30.5]} 22... Rd8 {[%clk 0:00:41.5]} 23. Rxd8+ {[%clk 0:01:31.9]} 23... Qxd8
{[%clk 0:00:41.9]} 24. Qe3 {[%clk 0:01:20]} 24... h5 {[%clk 0:00:36.2]} 25. fxg6
{[%clk 0:01:17.1]} 25... Kf8 {[%clk 0:00:37.6]} 26. g7+ {[%clk 0:00:55.2]} 26...
Kxg7 {[%clk 0:00:37.9]} 27. Qg3+ {[%clk 0:00:54.7]} 27... Kf8 {[%clk 0:00:37.2]}
28. Qf2 {[%clk 0:00:32.1]} 28... Qd6 {[%clk 0:00:36.8]} 29. Bb3 {[%clk
0:00:30.7]} 29... a5 {[%clk 0:00:36.5]} 30. Qa7 {[%clk 0:00:26.9]} 30... Kg7
{[%clk 0:00:33.3]} 31. Qxa5 {[%clk 0:00:27.9]} 31... Rd8 {[%clk 0:00:32.1]} 32.
Qc3 {[%clk 0:00:28.3]} 32... Qd4 {[%clk 0:00:32.7]} 33. Qg3+ {[%clk 0:00:29.2]}
33... Kh6 {[%clk 0:00:31.6]} 34. Rf1 {[%clk 0:00:20.9]} 34... Qe4 {[%clk
0:00:26.8]} 35. Re1 {[%clk 0:00:18.3]} 35... Qf5 {[%clk 0:00:28]} 36. Ka2 {[%clk
0:00:17.2]} 36... Qg5 {[%clk 0:00:27.6]} 37. Qf2 {[%clk 0:00:17]} 37... Rd2
{[%clk 0:00:26.5]} 38. Qa7 {[%clk 0:00:18]} 38... Qg7 {[%clk 0:00:14.6]} 39.
Qe3+ {[%clk 0:00:18.2]} 39... Qg5 {[%clk 0:00:15.8]} 40. Qa7 {[%clk 0:00:19.8]}
40... Bf8 {[%clk 0:00:13.6]} 41. Qa5 {[%clk 0:00:13.9]} 41... Rxg2 {[%clk
0:00:12.4]} 42. Rd1 {[%clk 0:00:14.1]} 42... c5 {[%clk 0:00:11.1]} 43. Rd8
{[%clk 0:00:13.6]} 43... c4 {[%clk 0:00:06.4]} 44. Ba4 {[%clk 0:00:14.2]} 44...
Bg7 {[%clk 0:00:06.7]} 45. Qa8 {[%clk 0:00:12.6]} 45... Qg6 {[%clk 0:00:06.8]}
46. Qc8 {[%clk 0:00:07.1]} 46... h4 {[%clk 0:00:03.8]} 47. Rg8 {[%clk
0:00:06.8]} 47... Kg5 {[%clk 0:00:04.7]} 48. Bc6 {[%clk 0:00:05.4]} 48... Rg3
{[%clk 0:00:05.3]} 49. Be4 {[%clk 0:00:04.8]} 49... f5 {[%clk 0:00:05.6]} 50.
Bxf5 {[%clk 0:00:05.1]} 50... Qxf5 {[%clk 0:00:07.5]} 51. Rxg7+ {[%clk
0:00:06.3]} 51... Kf4 {[%clk 0:00:09]} 52. Qh8 {[%clk 0:00:05.3]} 52... Rxg7
{[%clk 0:00:09.7]} 53. Qxg7 {[%clk 0:00:06.6]} 53... Qxc2 {[%clk 0:00:10]} 54.
Qh6+ {[%clk 0:00:07]} 54... Kf3 {[%clk 0:00:06.7]} 55. Qxh4 {[%clk 0:00:07.3]}
55... Qb3+ {[%clk 0:00:07.3]} 56. Ka1 {[%clk 0:00:08.4]} 56... Qd1+ {[%clk
0:00:08.4]} 57. Ka2 {[%clk 0:00:09.5]} 57... Qb3+ {[%clk 0:00:10.3]} 58. Ka1
{[%clk 0:00:10.9]} 58... Nd3 {[%clk 0:00:12.1]} 59. Qg4+ {[%clk 0:00:11.5]}
59... Ke3 {[%clk 0:00:13.6]} 60. Qg5+ {[%clk 0:00:12]} 60... Ke2 {[%clk
0:00:14.8]} 61. Qg2+ {[%clk 0:00:13.2]} 61... Nf2 {[%clk 0:00:15.1]} 62. h4
{[%clk 0:00:13.2]} 62... c3 {[%clk 0:00:15.4]} 63. bxc3 {[%clk 0:00:14.1]} 63...
Qxa3+ {[%clk 0:00:15.6]} 64. Kb1 {[%clk 0:00:15.5]} 64... Qb3+ {[%clk
0:00:17.2]} 65. Ka1 {[%clk 0:00:16.7]} 65... Qxc3+ {[%clk 0:00:19.1]} 66. Ka2
{[%clk 0:00:18.2]} 66... Qc4+ {[%clk 0:00:20.1]} 67. Ka3 {[%clk 0:00:18.6]}
67... Qxh4 {[%clk 0:00:22]} 68. Qg6 {[%clk 0:00:18.6]} 68... Nd3 {[%clk
0:00:21.7]} 69. Qe6+ {[%clk 0:00:18.6]} 69... Kd2 {[%clk 0:00:22.2]} 70. Qd6
{[%clk 0:00:19.7]} 70... Qe1 {[%clk 0:00:19.8]} 71. Qh2+ {[%clk 0:00:19.8]}
71... Kc1 {[%clk 0:00:18.3]} 72. Qh6+ {[%clk 0:00:18]} 72... Kd1 {[%clk
0:00:10.6]} 73. Qh5+ {[%clk 0:00:18.6]} 73... Kc2 {[%clk 0:00:11.3]} 74. Qh2+
{[%clk 0:00:06.3]} 74... Kc3 {[%clk 0:00:12]} 75. Qh8+ {[%clk 0:00:06.8]} 75...
Ne5 {[%clk 0:00:08.4]} 76. Qh3+ {[%clk 0:00:07.7]} 76... Kd4 {[%clk 0:00:08.9]}
77. Ka4 {[%clk 0:00:04.8]} 77... Qd1+ {[%clk 0:00:05.8]} 78. Ka5 {[%clk
0:00:05.2]} 78... Qa1+ {[%clk 0:00:06.5]} 79. Kb6 {[%clk 0:00:06.2]} 79... Nc4+
{[%clk 0:00:07.7]} 80. Kb7 {[%clk 0:00:07.1]} 80... Qb2+ {[%clk 0:00:08.1]} 81.
Kc8 {[%clk 0:00:07.8]} 81... Ne5 {[%clk 0:00:08.1]} 82. Qh4+ {[%clk 0:00:07.5]}
82... Kd5 {[%clk 0:00:08.9]} 83. Qd8+ {[%clk 0:00:08.3]} 83... Ke4 {[%clk
0:00:09.5]} 84. Qh4+ {[%clk 0:00:09.2]} 84... Kd3 {[%clk 0:00:09.7]} 85. Qh3+
{[%clk 0:00:08.4]} 85... Kc4 {[%clk 0:00:10.1]} 86. Qe6+ {[%clk 0:00:09]} 86...
Kb5 {[%clk 0:00:07.5]} 87. Qd5+ {[%clk 0:00:08.4]} 87... Ka4 {[%clk 0:00:04.2]}
88. Qa8+ {[%clk 0:00:09.1]} 88... Kb3 {[%clk 0:00:04.8]} 89. Qb7+ {[%clk
0:00:10.4]} 89... Kc2 {[%clk 0:00:06.7]} 90. Qxb2+ {[%clk 0:00:11.3]} 90... Kxb2
{[%clk 0:00:08.6]} 1/2-1/2

[Event "*** Qualifier 3: Titled Tuesday 3|2 Blitz"]
[Site "Chess.com"]
[Date "2017.04.18"]
[Round "3"]
[White "PelinGorki"]
[Black "Quiet_Desperation"]
[Result "1-0"]
[WhiteElo "2369"]
[BlackElo "2027"]
[TimeControl "180+2"]
[EndTime "13:34:30 PDT"]
[Termination "PelinGorki won by resignation"]

1. e4 {[%clk 0:03:02]} 1... Nc6 {[%clk 0:03:00.8]} 2. Nc3 {[%clk 0:03:01.5]}
2... d6 {[%clk 0:03:01.1]} 3. f4 {[%clk 0:02:59.3]} 3... Nf6 {[%clk 0:02:58.1]}
4. Nf3 {[%clk 0:03:00.1]} 4... e5 {[%clk 0:02:49.9]} 5. Bc4 {[%clk 0:02:59.2]}
5... Bg4 {[%clk 0:02:43]} 6. d3 {[%clk 0:02:57]} 6... Be7 {[%clk 0:02:34.7]} 7.
h3 {[%clk 0:02:54]} 7... Bxf3 {[%clk 0:02:34.5]} 8. Qxf3 {[%clk 0:02:55.9]} 8...
Nd4 {[%clk 0:02:33]} 9. Qf2 {[%clk 0:02:57.2]} 9... Nh5 {[%clk 0:02:28.8]} 10.
Bxf7+ {[%clk 0:02:51]} 10... Kxf7 {[%clk 0:02:16]} 11. fxe5+ {[%clk 0:02:52.3]}
11... Ke8 {[%clk 0:02:05.1]} 12. Qxd4 {[%clk 0:02:51.7]} 12... dxe5 {[%clk
0:02:06.4]} 13. Qxe5 {[%clk 0:02:50.6]} 13... Nf6 {[%clk 0:01:48.8]} 14. Bg5
{[%clk 0:02:42.9]} 14... Rf8 {[%clk 0:01:42.6]} 15. O-O-O {[%clk 0:02:39.9]}
15... h6 {[%clk 0:01:36.9]} 16. Bxf6 {[%clk 0:02:38.6]} 16... Rxf6 {[%clk
0:01:37.7]} 17. Nd5 {[%clk 0:02:39.5]} 17... Kd7 {[%clk 0:01:30.9]} 1-0

[Event "*** Qualifier 3: Titled Tuesday 3|2 Blitz"]
[Site "Chess.com"]
[Date "2017.04.18"]
[Round "3"]
[White "biostatistician"]
[Black "rasmussvane"]
[Result "0-1"]
[WhiteElo "2466"]
[BlackElo "2506"]
[TimeControl "180+2"]
[EndTime "13:34:40 PDT"]
[Termination "rasmussvane won by resignation"]

1. d4 {[%clk 0:03:02]} 1... Nf6 {[%clk 0:02:59.3]} 2. Nf3 {[%clk 0:03:03.9]}
2... d5 {[%clk 0:03:00]} 3. c4 {[%clk 0:03:05.1]} 3... e6 {[%clk 0:03:00.7]} 4.
Bg5 {[%clk 0:03:05.9]} 4... h6 {[%clk 0:03:00.5]} 5. Bh4 {[%clk 0:03:06.5]} 5...
Bb4+ {[%clk 0:03:00.8]} 6. Nc3 {[%clk 0:03:06.7]} 6... dxc4 {[%clk 0:03:01.9]}
7. Qa4+ {[%clk 0:03:01]} 7... Nc6 {[%clk 0:03:02.8]} 8. Ne5 {[%clk 0:03:01.7]}
8... Qxd4 {[%clk 0:02:42.1]} 9. Bxf6 {[%clk 0:01:13.8]} 9... Bxc3+ {[%clk
0:02:32.8]} 10. bxc3 {[%clk 0:01:15.7]} 10... Qxc3+ {[%clk 0:02:34.1]} 11. Kd1
{[%clk 0:01:17.1]} 11... Qxa1+ {[%clk 0:02:35.3]} 12. Kc2 {[%clk 0:01:18.6]}
12... gxf6 {[%clk 0:02:31.8]} 13. Nxc6 {[%clk 0:01:18.6]} 13... Bd7 {[%clk
0:02:27.2]} 0-1

[Event "*** Qualifier 3: Titled Tuesday 3|2 Blitz"]
[Site "Chess.com"]
[Date "2017.04.18"]
[Round "3"]
[White "oskariot"]
[Black "penguingm1"]
[Result "0-1"]
[WhiteElo "2439"]
[BlackElo "2565"]
[TimeControl "180+2"]
[EndTime "13:34:55 PDT"]
[Termination "penguingm1 won by resignation"]

1. c4 {[%clk 0:03:02]} 1... e6 {[%clk 0:03:00.2]} 2. g3 {[%clk 0:03:03.3]} 2...
Nf6 {[%clk 0:02:59.6]} 3. Bg2 {[%clk 0:03:04.4]} 3... d5 {[%clk 0:03:01.2]} 4.
cxd5 {[%clk 0:03:06.3]} 4... exd5 {[%clk 0:03:01.8]} 5. Nf3 {[%clk 0:03:08.2]}
5... c6 {[%clk 0:03:03.1]} 6. O-O {[%clk 0:03:10.1]} 6... Be7 {[%clk 0:03:04.7]}
7. d3 {[%clk 0:03:11.4]} 7... O-O {[%clk 0:03:06]} 8. b3 {[%clk 0:03:08.7]} 8...
Bf5 {[%clk 0:03:02.5]} 9. Bb2 {[%clk 0:03:09.4]} 9... h6 {[%clk 0:03:02.7]} 10.
Nbd2 {[%clk 0:03:10.7]} 10... Nbd7 {[%clk 0:03:02.7]} 11. a3 {[%clk 0:03:12]}
11... Re8 {[%clk 0:03:03.5]} 12. Rc1 {[%clk 0:03:10.3]} 12... Bd6 {[%clk
0:03:00.9]} 13. Rc2 {[%clk 0:02:48.2]} 13... Bh7 {[%clk 0:02:20.1]} 14. Re1
{[%clk 0:02:42.3]} 14... Qe7 {[%clk 0:02:16.3]} 15. Qa1 {[%clk 0:02:43.2]} 15...
Ne5 {[%clk 0:02:06.6]} 16. Ng5 {[%clk 0:02:33.6]} 16... hxg5 {[%clk 0:02:04.3]}
17. Nf3 {[%clk 0:02:20]} 17... g4 {[%clk 0:01:36.7]} 18. Nd4 {[%clk 0:02:18.3]}
18... Nxd3 {[%clk 0:01:32.5]} 0-1

[Event "*** Qualifier 3: Titled Tuesday 3|2 Blitz"]
[Site "Chess.com"]
[Date "2017.04.18"]
[Round "3"]
[White "DavidMarkosyan"]
[Black "Alexander_Donchenko"]
[Result "1-0"]
[WhiteElo "2341"]
[BlackElo "2525"]
[TimeControl "180+2"]
[EndTime "13:35:23 PDT"]
[Termination "DavidMarkosyan won by resignation"]

1. e4 {[%clk 0:03:02]} 1... c5 {[%clk 0:03:00.7]} 2. Nf3 {[%clk 0:03:02.6]} 2...
d6 {[%clk 0:03:02.4]} 3. d4 {[%clk 0:03:02.9]} 3... cxd4 {[%clk 0:03:04.3]} 4.
Nxd4 {[%clk 0:03:04.5]} 4... Nf6 {[%clk 0:03:05.9]} 5. Nc3 {[%clk 0:03:06]} 5...
a6 {[%clk 0:03:07.6]} 6. Bc4 {[%clk 0:03:06]} 6... e6 {[%clk 0:03:08.5]} 7. O-O
{[%clk 0:03:06.6]} 7... Be7 {[%clk 0:03:09]} 8. Bb3 {[%clk 0:03:07.1]} 8... O-O
{[%clk 0:03:07.9]} 9. f4 {[%clk 0:03:07.5]} 9... b5 {[%clk 0:03:08.4]} 10. f5
{[%clk 0:03:07.3]} 10... e5 {[%clk 0:03:08.7]} 11. Nde2 {[%clk 0:03:07.7]} 11...
Bb7 {[%clk 0:03:09.6]} 12. Ng3 {[%clk 0:03:08.7]} 12... Nbd7 {[%clk 0:03:09.5]}
13. Bg5 {[%clk 0:03:08.1]} 13... h6 {[%clk 0:03:09.8]} 14. Bxf6 {[%clk
0:03:08.8]} 14... Nxf6 {[%clk 0:03:11.7]} 15. Nh5 {[%clk 0:03:07.3]} 15... Nxh5
{[%clk 0:02:53.4]} 16. Qxh5 {[%clk 0:03:07]} 16... Rc8 {[%clk 0:02:51.9]} 17.
Rad1 {[%clk 0:03:01.7]} 17... b4 {[%clk 0:02:50.3]} 18. Nd5 {[%clk 0:03:01.6]}
18... Bxd5 {[%clk 0:02:51.4]} 19. Rxd5 {[%clk 0:03:01.9]} 19... a5 {[%clk
0:02:50.7]} 20. Rd3 {[%clk 0:02:53]} 20... Bf6 {[%clk 0:02:46.3]} 21. Rfd1
{[%clk 0:02:51]} 21... Qe8 {[%clk 0:02:36]} 22. Rxd6 {[%clk 0:02:46.3]} 22... a4
{[%clk 0:02:36.8]} 23. Bd5 {[%clk 0:02:38.9]} 23... Bg5 {[%clk 0:02:31.4]} 24.
h4 {[%clk 0:02:23.1]} 24... Be3+ {[%clk 0:02:31.4]} 25. Kh1 {[%clk 0:02:22]}
25... Rxc2 {[%clk 0:02:29]} 26. f6 {[%clk 0:02:18.5]} 26... Qb8 {[%clk
0:01:54.3]} 27. Qg6 {[%clk 0:02:12.7]} 1-0

[Event "*** Qualifier 3: Titled Tuesday 3|2 Blitz"]
[Site "Chess.com"]
[Date "2017.04.18"]
[Round "3"]
[White "Rating-Schmating"]
[Black "olomi007"]
[Result "0-1"]
[WhiteElo "2292"]
[BlackElo "2484"]
[TimeControl "180+2"]
[EndTime "13:35:46 PDT"]
[Termination "olomi007 won by resignation"]

1. e4 {[%clk 0:03:01.9]} 1... c5 {[%clk 0:03:00.5]} 2. Nf3 {[%clk 0:02:53]} 2...
Nc6 {[%clk 0:03:00.5]} 3. d4 {[%clk 0:02:53.3]} 3... cxd4 {[%clk 0:03:01.4]} 4.
Nxd4 {[%clk 0:02:53.5]} 4... g6 {[%clk 0:03:02.8]} 5. c4 {[%clk 0:02:54]} 5...
Bg7 {[%clk 0:03:02.8]} 6. Be3 {[%clk 0:02:54.8]} 6... Nf6 {[%clk 0:03:04]} 7.
Nc3 {[%clk 0:02:55.5]} 7... O-O {[%clk 0:03:05.6]} 8. Be2 {[%clk 0:02:56.1]}
8... d6 {[%clk 0:03:07]} 9. O-O {[%clk 0:02:56.9]} 9... Bd7 {[%clk 0:03:08.2]}
10. b3 {[%clk 0:02:56.4]} 10... Nxd4 {[%clk 0:03:07.6]} 11. Bxd4 {[%clk
0:02:57.1]} 11... Bc6 {[%clk 0:03:08.9]} 12. Bf3 {[%clk 0:02:56.2]} 12... a5
{[%clk 0:03:03.7]} 13. a3 {[%clk 0:02:53.2]} 13... Nd7 {[%clk 0:02:34.3]} 14.
Bxg7 {[%clk 0:02:51.7]} 14... Kxg7 {[%clk 0:02:35.5]} 15. Nd5 {[%clk 0:02:53.2]}
15... Ne5 {[%clk 0:02:31.7]} 16. Be2 {[%clk 0:02:52.8]} 16... Bxd5 {[%clk
0:02:30.6]} 17. exd5 {[%clk 0:02:52.3]} 17... Qb6 {[%clk 0:02:30.7]} 18. Kh1
{[%clk 0:02:46.6]} 18... Nd7 {[%clk 0:02:24.8]} 19. Rc1 {[%clk 0:02:46.2]} 19...
Qc5 {[%clk 0:02:25.3]} 20. Qd2 {[%clk 0:02:45.9]} 20... Qxa3 {[%clk 0:02:23.5]}
21. Qd4+ {[%clk 0:02:44.8]} 21... Kg8 {[%clk 0:02:21.3]} 22. h4 {[%clk
0:02:44.7]} 22... Qc5 {[%clk 0:02:18.1]} 23. Qb2 {[%clk 0:02:44.5]} 23... Nf6
{[%clk 0:02:13.9]} 24. h5 {[%clk 0:02:44.9]} 24... Kg7 {[%clk 0:02:04.2]} 25.
Rc3 {[%clk 0:02:44.3]} 25... Qd4 {[%clk 0:02:01.4]} 26. h6+ {[%clk 0:02:43.1]}
26... Kg8 {[%clk 0:02:01.9]} 27. g3 {[%clk 0:02:41.2]} 27... a4 {[%clk
0:02:01.7]} 28. Rd1 {[%clk 0:02:40.8]} 28... a3 {[%clk 0:02:00.5]} 29. Qa1
{[%clk 0:02:29]} 29... Qxf2 {[%clk 0:02:01]} 30. Rf1 {[%clk 0:02:26.5]} 30...
Qxe2 {[%clk 0:02:01.5]} 31. Rxf6 {[%clk 0:02:25.5]} 31... exf6 {[%clk
0:02:01.6]} 32. Rc1 {[%clk 0:02:18.9]} 32... Qf3+ {[%clk 0:01:58.4]} 33. Kh2
{[%clk 0:02:18.7]} 33... a2 {[%clk 0:01:56.5]} 34. Rf1 {[%clk 0:02:19.3]} 34...
Qh5+ {[%clk 0:01:57.2]} 35. Kg2 {[%clk 0:02:18.5]} 35... Qxh6 {[%clk 0:01:53.9]}
36. Qxf6 {[%clk 0:02:19.1]} 36... Qg7 {[%clk 0:01:53.6]} 0-1

[Event "*** Qualifier 3: Titled Tuesday 3|2 Blitz"]
[Site "Chess.com"]
[Date "2017.04.18"]
[Round "3"]
[White "scrapnel"]
[Black "MITerryble"]
[Result "0-1"]
[WhiteElo "2374"]
[BlackElo "2647"]
[TimeControl "180+2"]
[EndTime "13:37:01 PDT"]
[Termination "MITerryble won on time"]

1. d4 {[%clk 0:03:02]} 1... e6 {[%clk 0:03:00.4]} 2. Nf3 {[%clk 0:03:00.9]} 2...
Nf6 {[%clk 0:03:01.2]} 3. c4 {[%clk 0:03:01.5]} 3... Bb4+ {[%clk 0:03:01.5]} 4.
Bd2 {[%clk 0:03:00.9]} 4... c5 {[%clk 0:03:01.3]} 5. g3 {[%clk 0:02:56.6]} 5...
Qb6 {[%clk 0:03:00.5]} 6. Qb3 {[%clk 0:02:49.5]} 6... Nc6 {[%clk 0:02:51.8]} 7.
dxc5 {[%clk 0:02:06.4]} 7... Bxc5 {[%clk 0:02:29.7]} 8. Qxb6 {[%clk 0:02:05.7]}
8... axb6 {[%clk 0:02:31.6]} 9. Nc3 {[%clk 0:01:42.1]} 9... Na5 {[%clk 0:02:30]}
10. Nb5 {[%clk 0:01:35.3]} 10... O-O {[%clk 0:02:28]} 11. b4 {[%clk 0:01:31.9]}
11... Nb3 {[%clk 0:02:29]} 12. Rb1 {[%clk 0:01:25.9]} 12... Nxd2 {[%clk
0:02:24.2]} 13. Nxd2 {[%clk 0:01:24.2]} 13... Be7 {[%clk 0:02:25.2]} 14. a3
{[%clk 0:01:17]} 14... d5 {[%clk 0:02:25.8]} 15. Rb3 {[%clk 0:00:27]} 15... Bd7
{[%clk 0:02:22]} 16. Nc3 {[%clk 0:00:21.8]} 16... d4 {[%clk 0:02:22.8]} 17. Nce4
{[%clk 0:00:10.7]} 17... Nxe4 {[%clk 0:02:23]} 18. Nxe4 {[%clk 0:00:11.5]} 18...
Ba4 {[%clk 0:02:24]} 19. Rd3 {[%clk 0:00:10.4]} 19... e5 {[%clk 0:02:01.4]} 20.
Bg2 {[%clk 0:00:08]} 20... Bc2 {[%clk 0:01:49.3]} 21. Rd2 {[%clk 0:00:05.9]}
21... Bb3 {[%clk 0:01:50.5]} 0-1